bitfinex-derivatives/quotes_BNBF0:USTF0_20241231
["timestamp","ask_amount","ask_price","bid_price","bid_amount"]
[1735622611489,0.262426,701.7,699.52,1.0697838]
[1735622612083,0.262426,701.7,699.73,1.0697838]
[1735622612289,0.262426,701.69,699.73,1.0697838]
[1735622612489,0.262426,701.68,699.73,1.0697838]
[1735622612687,0.262426,701.67,699.73,1.0697838]
[1735622612991,0.262426,701.66,699.73,1.0697838]
[1735622613290,0.262426,701.65,699.68,1.0697838]
[1735622613489,0.262426,701.64,699.68,1.0697838]
[1735622613691,0.26240938,701.63,699.68,1.0697838]
[1735622613886,1.04892395,701.71,699.68,1.0697838]
[1735622613887,0.26240938,701.7,699.68,1.0697838]
[1735622614190,1.04892395,701.67,699.81,1.0697838]
[1735622614591,0.26239444,701.66,699.81,1.0697838]
[1735622615189,0.26239444,701.66,699.58,1.23138398]
[1735622615190,0.26239444,701.66,699.8,1.0697838]
[1735622615392,0.26239444,701.65,699.8,1.0697838]
[1735622615591,0.26239444,701.64,699.8,1.0697838]
[1735622615791,2.53904335,701.74,699.8,1.0697838]
[1735622615992,0.26238881,701.73,699.8,1.0697838]
[1735622616495,0.26238881,701.73,699.78,1.0697838]
[1735622618698,0.26238881,701.73,699.82,1.0697838]
[1735622619694,0.26238881,701.73,699.65,1.28374056]
[1735622619695,0.26238881,701.73,699.81,1.0697838]
[1735622620195,1.4901194,701.74,699.81,1.0697838]
[1735622621589,1.4901194,701.74,699.61,1.28374056]
[1735622621590,1.4901194,701.74,699.8,1.0697838]
[1735622622393,0.26238127,701.73,699.8,1.0697838]
[1735622622689,0.26238127,701.73,699.75,1.0697838]
[1735622623590,1.4901194,701.74,699.75,1.0697838]
[1735622623791,1.4901194,701.74,699.88,1.0697838]
[1735622623991,1.4901194,701.74,699.9,0.2857551]
[1735622624188,0.26237062,701.72,699.9,0.2857551]
[1735622624391,1.4901194,701.74,699.9,0.2857551]
[1735622624690,0.26237809,701.73,699.9,0.2857551]
[1735622625393,1.4901194,701.74,699.9,0.2857551]
[1735622626194,0.26244765,701.73,699.9,0.2857551]
[1735622627498,1.04892395,701.7,699.9,0.2857551]
[1735622627699,0.26244765,701.69,699.9,0.2857551]
[1735622628300,1.04892395,701.7,699.9,0.2857551]
[1735622628501,0.26246286,701.69,699.9,0.2857551]
[1735622628697,0.26246286,701.73,699.9,0.2857551]
[1735622628902,0.26246286,701.72,699.9,0.2857551]
[1735622629200,0.26246286,701.71,699.9,0.2857551]
[1735622629404,1.04892395,701.69,699.9,0.2857551]
[1735622629600,0.26246286,701.68,699.9,0.2857551]
[1735622630407,1.04892395,701.64,699.9,0.2857551]
[1735622630705,0.26246286,701.63,699.9,0.2857551]
[1735622630898,0.2625271,701.62,699.9,0.2857551]
[1735622631102,1.49017257,701.63,699.9,0.2857551]
[1735622631304,0.26250855,701.62,699.9,0.2857551]
[1735622631604,1.49017257,701.63,699.9,0.2857551]
[1735622631903,0.26251351,701.62,699.9,0.2857551]
[1735622632104,1.49017257,701.63,699.9,0.2857551]
[1735622632604,0.2625107,701.62,699.9,0.2857551]
[1735622632805,1.49017257,701.63,699.9,0.2857551]
[1735622633005,0.26250474,701.62,699.9,0.2857551]
[1735622633705,1.49017257,701.63,699.9,0.2857551]
[1735622634104,0.2625109,701.62,699.9,0.2857551]
[1735622634503,1.49017257,701.63,699.9,0.2857551]
[1735622634801,0.28505865,701.61,699.9,0.2857551]
[1735622640411,0.26251023,701.6,699.9,0.2857551]
[1735622640715,0.28507084,701.58,699.9,0.2857551]
[1735622641015,0.26251643,701.57,699.9,0.2857551]
[1735622641411,0.28507896,701.56,699.9,0.2857551]
[1735622641611,0.26251643,701.55,699.9,0.2857551]
[1735622641813,0.28508709,701.54,699.9,0.2857551]
[1735622642014,0.26251643,701.53,699.9,0.2857551]
[1735622642315,0.28509928,701.51,699.9,0.2857551]
[1735622642512,0.26251643,701.5,699.9,0.2857551]
[1735622642713,0.28510741,701.49,699.9,0.2857551]
[1735622642913,0.26251643,701.48,699.9,0.2857551]
[1735622643115,0.28511554,701.47,699.9,0.2857551]
[1735622643610,0.2625364,701.46,699.9,0.2857551]
[1735622643810,0.28512367,701.45,699.9,0.2857551]
[1735622644012,0.2625364,701.44,699.9,0.2857551]
[1735622644212,0.2851318,701.43,699.9,0.2857551]
[1735622644413,0.2625364,701.42,699.9,0.2857551]
[1735622644609,0.28513993,701.41,699.9,0.2857551]
[1735622644810,0.2625364,701.4,699.9,0.2857551]
[1735622645010,0.28514806,701.39,699.9,0.2857551]
[1735622645210,0.2625364,701.38,699.9,0.2857551]
[1735622645411,0.28515619,701.37,699.9,0.2857551]
[1735622645720,0.2625306,701.36,699.9,0.2857551]
[1735622645917,0.28515619,701.37,699.9,0.2857551]
[1735622648417,0.26253745,701.36,699.9,0.2857551]
[1735622648617,0.54769813,701.35,699.9,0.2857551]
[1735622648819,0.26252419,701.34,699.9,0.2857551]
[1735622649418,0.26253743,701.33,699.9,0.2857551]
[1735622649617,0.26253743,701.32,699.9,0.2857551]
[1735622649818,0.28516432,701.35,699.9,0.2857551]
[1735622650419,0.26253597,701.34,699.9,0.2857551]
[1735622651216,0.26253749,701.33,699.9,0.2857551]
[1735622651422,0.28516432,701.35,699.9,0.2857551]
[1735622651622,0.26253275,701.34,699.9,0.2857551]
[1735622652318,1.49036403,701.33,699.9,0.2857551]
[1735622656922,1.77553648,701.33,699.9,0.2857551]
[1735622657126,0.28517652,701.32,699.9,0.2857551]
[1735622657428,0.54772717,701.32,699.9,0.2857551]
[1735622658026,0.26255065,701.31,699.9,0.2857551]
[1735622658222,0.28518465,701.3,699.9,0.2857551]
[1735622658421,0.26255065,701.29,699.9,0.2857551]
[1735622658825,0.28519279,701.28,699.9,0.2857551]
[1735622659126,0.26255065,701.27,699.9,0.2857551]
[1735622659323,0.26255683,701.26,699.9,0.2857551]
[1735622659520,0.26255683,701.25,699.9,0.2857551]
[1735622659720,0.28519279,701.28,699.9,0.2857551]
[1735622659924,0.26255672,701.27,699.9,0.2857551]
[1735622660725,0.28519279,701.28,699.9,0.2857551]
[1735622661731,0.26255379,701.27,699.9,0.2857551]
[1735622661927,0.28519279,701.28,699.9,0.2857551]
[1735622662327,0.26256832,701.27,699.9,0.2857551]
[1735622662531,0.28519279,701.28,699.9,0.2857551]
[1735622662733,0.26257478,701.27,699.9,0.2857551]
[1735622662934,1.04892395,701.26,699.9,0.2857551]
[1735622663633,1.49046509,701.25,699.9,0.2857551]
[1735622663829,1.04892395,701.23,699.9,0.2857551]
[1735622665228,1.49046509,701.25,699.9,0.2857551]
[1735622677140,1.04892395,701.24,699.9,0.2857551]
[1735622679437,1.04892395,701.22,699.9,0.2857551]
[1735622680343,1.04892395,701.19,699.9,0.2857551]
[1735622681240,1.49046509,701.25,699.9,0.2857551]
[1735622682848,0.26262827,701.24,699.9,0.2857551]
[1735622683045,1.31155222,701.24,699.9,0.2857551]
[1735622683245,0.26262827,701.23,699.9,0.2857551]
[1735622684446,1.04892395,701.05,699.9,0.2857551]
[1735622685044,1.49084821,701.04,699.9,0.2857551]
[1735622686147,0.26264801,701.03,699.9,0.2857551]
[1735622686747,1.49084821,701.04,699.9,0.2857551]
[1735622686949,0.26265124,701.03,699.9,0.2857551]
[1735622687149,1.49084821,701.04,699.9,0.2857551]
[1735622691054,0.26272181,701.03,699.9,0.2857551]
[1735622693356,1.04892395,700.96,699.9,0.2857551]
[1735622693555,0.26277277,700.95,699.9,0.2857551]
[1735622694057,1.04892395,700.96,699.9,0.2857551]
[1735622694252,0.26276353,700.95,699.9,0.2857551]
[1735622694747,0.26276353,700.94,699.9,0.2857551]
[1735622694947,0.26276353,700.93,699.9,0.2857551]
[1735622695154,0.26276353,700.92,699.9,0.2857551]
[1735622695356,0.26276353,700.91,699.9,0.2857551]
[1735622696056,1.49154044,700.92,699.9,0.2857551]
[1735622696258,0.26279561,700.91,699.9,0.2857551]
[1735622698658,1.49154044,700.92,699.9,0.2857551]
[1735622698857,0.26277027,700.91,699.9,0.2857551]
[1735622701063,0.26277184,700.9,699.9,0.2857551]
[1735622701361,0.26277184,700.89,699.9,0.2857551]
[1735622701660,0.26277348,700.88,699.9,0.2857551]
[1735622701861,0.26277348,700.87,699.9,0.2857551]
[1735622702159,0.26277348,700.86,699.9,0.2857551]
[1735622702361,0.26277348,700.85,699.9,0.2857551]
[1735622702560,1.49154044,700.92,699.9,0.2857551]
[1735622702762,0.26276604,700.91,699.9,0.2857551]
[1735622703462,0.26276584,700.9,699.9,0.2857551]
[1735622703661,1.49154044,700.92,699.9,0.2857551]
[1735622703662,0.26276584,700.89,699.9,0.2857551]
[1735622703859,0.26276584,700.88,699.9,0.2857551]
[1735622704062,0.26276584,700.87,699.9,0.2857551]
[1735622704259,0.26276584,700.86,699.9,0.2857551]
[1735622704461,0.26276584,700.85,699.9,0.2857551]
[1735622704660,0.26276584,700.84,699.9,0.2857551]
[1735622704862,0.26276584,700.83,699.9,0.2857551]
[1735622705064,1.49154044,700.92,699.9,0.2857551]
[1735622705266,0.26277403,700.91,699.9,0.2857551]
[1735622705763,1.75462885,700.9,699.9,0.2857551]
[1735622705960,0.26276865,700.89,699.9,0.2857551]
[1735622708559,1.49185482,700.9,699.9,0.2857551]
[1735622708764,0.26272399,700.89,699.9,0.2857551]
[1735622709263,1.49185482,700.9,698.58,1.0697838]
[1735622709264,0.26269988,700.88,698.58,1.0697838]
[1735622709468,1.49185482,700.9,698.58,1.0697838]
[1735622709962,1.49185482,700.9,698.98,1.0697838]
[1735622711266,1.49185482,700.9,698.72,2.18414192]
[1735622711267,1.49185482,700.9,699.02,1.0697838]
[1735622712268,1.49185482,700.9,699.07,1.0697838]
[1735622713165,1.49185482,700.9,699.16,1.0697838]
[1735622714366,1.49185482,700.9,698.98,1.28374056]
[1735622714367,1.49185482,700.9,699.21,1.0697838]
[1735622715160,1.49185482,700.9,699.2,1.0697838]
[1735622716567,1.49185482,700.9,699.26,1.0697838]
[1735622717663,1.49185482,700.9,698.96,2.18414192]
[1735622717664,1.49185482,700.9,699.29,1.0697838]
[1735622717867,1.04892395,701.3,699.29,1.0697838]
[1735622718069,1.49088014,701.01,699.29,1.0697838]
[1735622718269,1.04892395,701.3,699.29,1.0697838]
[1735622718470,1.4907737,701.04,699.29,1.0697838]
[1735622718670,1.04892395,701.47,699.38,1.0697838]
[1735622718973,0.2625746,701.46,699.38,1.0697838]
[1735622719565,1.31149855,701.46,699.33,1.0697838]
[1735622719874,0.2625746,701.45,699.33,1.0697838]
[1735622720177,2.80213921,701.45,699.29,1.0697838]
[1735622720373,0.2625746,701.44,699.29,1.0697838]
[1735622721672,1.49064066,701.45,699.29,1.0697838]
[1735622721878,0.26260017,701.44,699.28,1.0697838]
[1735622723179,1.04892395,701.42,699.19,1.0697838]
[1735622723382,0.26260017,701.41,699.19,1.0697838]
[1735622724376,0.26262578,701.4,699.19,1.0697838]
[1735622724578,0.26262578,701.39,699.19,1.0697838]
[1735622724774,0.26262578,701.38,699.19,1.0697838]
[1735622724981,0.26261196,701.37,699.19,1.0697838]
[1735622725181,0.26261196,701.36,699.19,1.0697838]
[1735622725375,0.26261196,701.35,699.19,1.0697838]
[1735622725581,0.26261196,701.34,699.18,1.0697838]
[1735622725879,0.26261196,701.33,699.18,1.0697838]
[1735622726081,0.26261196,701.32,699.18,1.0697838]
[1735622726281,0.26261196,701.44,699.18,1.0697838]
[1735622726482,1.31153591,701.43,699.18,1.0697838]
[1735622726683,0.26261196,701.42,699.18,1.0697838]
[1735622727083,0.26261439,701.41,699.18,1.0697838]
[1735622727284,0.26261439,701.4,699.18,1.0697838]
[1735622727482,0.26261439,701.39,699.19,1.0697838]
[1735622727783,0.26261439,701.38,699.19,1.0697838]
[1735622727985,0.26261439,701.37,699.19,1.0697838]
[1735622728183,0.26261439,701.44,699.19,1.0697838]
[1735622728383,0.26261439,701.43,699.19,1.0697838]
[1735622728584,0.26261439,701.42,699.19,1.0697838]
[1735622728783,0.26261439,701.41,699.24,1.0697838]
[1735622729581,1.04892395,701.42,699.24,1.0697838]
[1735622729886,0.26261897,701.41,699.24,1.0697838]
[1735622730087,1.04892395,701.39,699.27,1.0697838]
[1735622730283,0.26261897,701.38,699.27,1.0697838]
[1735622730885,1.4907737,701.37,699.27,1.0697838]
[1735622731186,0.26261897,701.36,699.24,1.0697838]
[1735622731987,0.26261897,701.36,699.26,1.0697838]
[1735622732882,0.26261897,701.36,699.39,1.0697838]
[1735622733083,1.4907737,701.37,699.39,1.0697838]
[1735622733084,0.2626297,701.35,699.39,1.0697838]
[1735622733279,0.2626297,701.34,699.39,1.0697838]
[1735622733488,0.2626297,701.34,699.35,1.0697838]
[1735622733489,0.2626297,701.33,699.35,1.0697838]
[1735622734390,0.2626297,701.33,699.38,1.0697838]
[1735622734687,0.2626297,701.32,699.38,1.0697838]
[1735622734888,0.2626297,701.31,699.38,1.0697838]
[1735622735088,0.2626297,701.3,699.38,1.0697838]
[1735622735282,1.04892395,701.36,699.25,2.55940375]
[1735622735283,0.2626297,701.29,699.39,1.0697838]
[1735622735482,0.2626297,701.28,699.39,1.0697838]
[1735622735687,0.2626297,701.27,699.39,1.0697838]
[1735622735886,0.2626297,701.26,699.39,1.0697838]
[1735622736187,0.2626297,701.25,699.39,1.0697838]
[1735622736389,0.2626297,701.24,699.42,1.0697838]
[1735622736584,0.2626297,701.23,699.42,1.0697838]
[1735622736780,0.2626297,701.22,699.42,1.0697838]
[1735622736982,0.2626297,701.21,699.42,1.0697838]
[1735622737287,1.04892395,701.35,699.42,1.0697838]
[1735622737288,0.2626297,701.2,699.42,1.0697838]
[1735622737484,0.2626297,701.19,699.42,1.0697838]
[1735622737690,0.26262686,701.18,699.39,1.0697838]
[1735622737989,0.26262686,701.17,699.39,1.0697838]
[1735622738190,0.26262686,701.16,699.39,1.0697838]
[1735622738390,0.26262686,701.15,699.39,1.0697838]
[1735622738588,0.26262686,701.14,699.39,1.0697838]
[1735622738783,0.26262686,701.14,699.31,2.56048646]
[1735622738784,0.26262686,701.13,699.4,1.0697838]
[1735622738987,0.26262686,701.12,699.4,1.0697838]
[1735622739185,0.26262686,701.12,699.13,2.18414192]
[1735622739384,0.26262686,701.23,695.34,1.91842401]
[1735622739587,0.26262686,701.36,695.34,1.91842401]
[1735622739788,0.26262686,701.35,695.34,1.91842401]
[1735622740084,1.4907737,701.37,697.7,3.75816187]
[1735622740283,1.05478732,701.18,699.51,1.06582035]
[1735622740491,0.26260777,701.17,699.51,1.06582035]
[1735622741091,1.05478732,701.15,699.56,1.06582035]
[1735622741985,1.49078966,701.16,699.04,1.06582035]
[1735622742792,1.49078966,701.16,698.95,1.06582035]
[1735622743597,1.49078966,701.16,698.99,1.06582035]
[1735622744896,1.05478732,701.15,699.1,1.06582035]
[1735622745895,1.05478732,701.13,699.09,1.06582035]
[1735622747193,1.49078966,701.16,699.1,1.06582035]
[1735622748292,1.49078966,701.16,699.08,1.06582035]
[1735622749102,0.26270723,701.15,699.08,1.06582035]
[1735622749296,0.26270723,701.15,699.07,1.06582035]
[1735622750600,1.05478732,700.93,699.28,1.06582035]
[1735622750800,0.26270723,700.92,699.28,1.06582035]
[1735622751000,1.05478732,700.93,699.28,1.06582035]
[1735622751499,1.49137531,700.92,699.28,1.06582035]
[1735622751700,1.49137531,700.92,699.24,1.06582035]
[1735622752800,1.49137531,700.92,698.73,1.06582035]
[1735622753601,1.49137531,700.92,698.62,1.06582035]
[1735622754403,1.49137531,700.92,698.64,1.06582035]
[1735622755209,1.49137531,700.92,698.17,2.56628764]
[1735622755210,1.49137531,700.92,698.63,1.06582035]
[1735622756401,0.28534741,700.9,698.74,0.28622949]
[1735622758808,0.28534741,700.9,698.92,1.06582035]
[1735622759008,0.28534741,700.9,698.94,0.28614759]
[1735622761613,0.28534741,700.9,699.18,1.06582035]
[1735622761806,0.28534741,700.9,699.2,0.28604118]
[1735622762305,0.28534741,700.9,699.32,1.06582035]
[1735622763009,0.28534741,700.9,699.33,0.28598801]
[1735622764110,0.28534741,700.9,699.33,1.35180836]
[1735622765210,0.28534741,700.9,699.37,1.06582035]
[1735622766314,0.28534741,700.9,699.33,0.28598801]
[1735622767414,0.28534741,700.9,699.39,1.06582035]
[1735622768812,0.28534741,700.9,699.4,1.06582035]
[1735622769717,0.28534741,700.9,699.38,1.06582035]
[1735622770519,0.28534741,700.9,699.4,0.28595939]
[1735622774018,0.28534741,700.9,699.54,1.06582035]
[1735622774615,0.28534741,700.9,699.55,0.28589807]
[1735622777015,0.28534333,700.91,699.55,0.28589807]
[1735622779620,0.26271604,700.9,699.55,0.28589807]
[1735622780023,0.26272091,700.89,699.55,0.28589807]
[1735622780221,0.26272091,700.88,699.55,0.28589807]
[1735622780524,0.26272091,700.87,699.55,0.28589807]
[1735622780725,0.26272091,700.86,699.55,0.28589807]
[1735622781025,0.28534333,700.91,699.55,0.28589807]
[1735622781224,0.26271993,700.9,699.55,0.28589807]
[1735622781625,0.28534333,700.91,699.55,0.28589807]
[1735622781924,0.26272756,700.9,699.55,0.28589807]
[1735622784030,1.05478732,700.8,699.55,0.28589807]
[1735622784230,0.26272756,700.79,699.55,0.28589807]
[1735622784525,1.05478732,700.8,699.55,0.28589807]
[1735622784730,1.49180152,700.78,699.55,0.28589807]
[1735622784928,0.2628109,700.77,699.55,0.28589807]
[1735622786729,0.2628109,700.77,698.78,1.06582035]
[1735622786930,1.49180152,700.78,698.8,0.28620492]
[1735622787128,0.26281851,700.77,698.8,0.28620492]
[1735622787733,0.26281461,700.76,698.8,0.28620492]
[1735622788033,0.26281461,700.77,698.8,0.28620492]
[1735622788229,0.26281461,700.76,698.8,0.28620492]
[1735622788429,0.26281461,700.75,698.8,0.28620492]
[1735622788634,0.26281461,700.74,698.8,0.28620492]
[1735622788834,0.26281461,700.73,698.8,0.28620492]
[1735622789030,0.26281461,700.72,698.8,0.28620492]
[1735622789230,0.26281461,700.71,698.8,0.28620492]
[1735622789529,0.26281461,700.7,698.8,0.28620492]
[1735622789735,0.26281461,700.77,698.8,0.28620492]
[1735622789935,0.26281461,700.76,698.8,0.28620492]
[1735622790132,0.26281461,700.77,698.8,0.28620492]
[1735622790434,0.26281461,700.76,698.8,0.28620492]
[1735622790629,0.26281461,700.75,698.8,0.28620492]
[1735622790833,0.26281461,700.74,698.8,0.28620492]
[1735622791034,0.26281461,700.73,698.8,0.28620492]
[1735622791233,0.26281461,700.72,698.8,0.28620492]
[1735622791535,0.26281461,700.71,698.8,0.28620492]
[1735622791737,0.26281461,700.77,698.8,0.28620492]
[1735622792036,0.2627905,700.76,698.8,0.28620492]
[1735622792237,1.49180152,700.78,698.8,0.28620492]
[1735622792437,0.26279131,700.77,698.8,0.28620492]
[1735622793437,1.49180152,700.78,698.8,0.28620492]
[1735622795138,1.49180152,700.78,698.84,1.06582035]
[1735622796037,1.49180152,700.78,698.93,1.06582035]
[1735622797439,1.49180152,700.78,698.96,1.06582035]
[1735622798237,1.49180152,700.78,698.98,0.28613121]
[1735622799539,1.49180152,700.78,699.0,1.06582035]
[1735622800434,1.49180152,700.78,699.01,1.06582035]
[1735622801539,1.49180152,700.78,699.03,0.28611075]
[1735622801741,0.28540034,700.77,699.03,0.28611075]
[1735622802144,0.28540034,700.77,699.05,1.06582035]
[1735622802747,0.28540034,700.77,699.05,6.07148709]
[1735622802938,0.28540034,700.77,699.06,2.56698134]
[1735622803140,0.28540034,700.77,699.07,1.60959663]
[1735622803338,0.28540034,700.77,699.07,5.29154883]
[1735622803544,0.28540034,700.77,699.11,1.06582035]
[1735622804442,0.28540034,700.77,699.11,6.0712748]
[1735622804642,0.28540034,700.77,699.13,0.28606982]
[1735622804838,0.28540034,700.77,699.13,2.85283887]
[1735622805043,0.28540034,700.77,699.19,1.06582035]
[1735622805846,0.28540034,700.77,699.23,1.06582035]
[1735622806748,0.28540034,700.77,699.22,1.06582035]
[1735622807750,0.28540034,700.77,699.13,0.28606982]
[1735622812652,0.26275667,700.76,699.13,0.28606982]
[1735622814055,0.26275667,700.76,699.18,1.06582035]
[1735622814952,0.26275667,700.76,699.19,1.06582035]
[1735622815858,0.26275667,700.76,699.2,0.28604118]
[1735622816158,0.28540849,700.75,699.2,1.35186153]
[1735622816358,0.26275667,700.74,699.2,1.35186153]
[1735622816659,0.28541663,700.73,699.2,1.35186153]
[1735622816857,0.26275667,700.72,699.2,1.35186153]
[1735622817059,0.26275667,700.72,699.21,1.06582035]
[1735622817258,0.26275667,700.72,699.22,0.286033]
[1735622817461,0.28542478,700.71,699.22,0.286033]
[1735622817761,0.26275667,700.7,699.22,0.286033]
[1735622818054,1.75430243,700.7,699.22,0.286033]
[1735622818260,0.28543293,700.69,699.22,0.286033]
[1735622838874,0.26278309,700.68,699.22,0.286033]
[1735622839074,0.28544107,700.67,699.22,0.286033]
[1735622841880,0.28544107,700.67,699.24,1.06582035]
[1735622842779,0.28544107,700.67,699.28,1.06582035]
[1735622843878,0.28544107,700.67,699.26,1.06582035]
[1735622844580,0.28544107,700.67,699.23,1.06582035]
[1735622844781,0.28544107,700.67,699.23,1.35184926]
[1735622845584,0.28544107,700.67,699.24,1.06582035]
[1735622847485,0.28544107,700.67,699.25,1.06582035]
[1735622848579,1.05478732,700.61,699.23,0.28602891]
[1735622848782,0.28546959,700.6,699.23,0.28602891]
[1735622849282,1.77718052,700.6,699.23,0.28602891]
[1735622849685,1.05478732,700.59,699.23,0.28602891]
[1735622849880,0.28547774,700.58,699.23,0.28602891]
[1735622850786,1.05478732,700.56,699.23,0.28602891]
[1735622850978,0.28548997,700.55,699.23,0.28602891]
[1735622851784,1.05478732,700.51,699.23,0.28602891]
[1735622853186,1.05478732,700.48,699.23,0.28602891]
[1735622853587,1.05478732,700.48,699.12,1.06582035]
[1735622853985,0.26294777,700.47,699.12,1.06582035]
[1735622854187,1.05478732,700.43,698.61,1.06582035]
[1735622854385,1.05478732,700.43,698.62,0.28627866]
[1735622854983,0.28554703,700.41,698.62,0.28627866]
[1735622859487,1.49314035,700.4,698.62,0.28627866]
[1735622860391,0.28555926,700.38,698.62,0.28627866]
[1735622860591,0.26309611,700.37,698.62,0.28627866]
[1735622860793,0.28557149,700.35,698.62,0.28627866]
[1735622860993,0.26309611,700.34,698.62,0.28627866]
[1735622862394,0.28558373,700.32,698.62,0.28627866]
[1735622862590,0.26309611,700.31,698.62,0.28627866]
[1735622863294,0.26304892,700.3,698.62,0.28627866]
[1735622863495,0.28558373,700.32,698.62,0.28627866]
[1735622863696,0.26302588,700.31,698.62,0.28627866]
[1735622865895,0.26299506,700.3,698.62,0.28627866]
[1735622866095,0.26299506,700.29,698.62,0.28627866]
[1735622866295,0.26299506,700.28,698.62,0.28627866]
[1735622866497,0.26299506,700.31,698.62,0.28627866]
[1735622866697,0.26299506,700.3,698.62,0.28627866]
[1735622866892,0.26299506,700.29,698.62,0.28627866]
[1735622867092,0.26299506,700.28,698.62,0.28627866]
[1735622867291,0.54859918,700.27,698.62,0.28627866]
[1735622867497,0.54860326,700.26,698.62,0.28627866]
[1735622867699,0.54860734,700.25,698.62,0.28627866]
[1735622867895,0.54861142,700.24,698.62,0.28627866]
[1735622868095,0.54861549,700.23,698.62,0.28627866]
[1735622868398,0.54861957,700.22,698.62,0.28627866]
[1735622868599,0.28562859,700.21,698.62,0.28627866]
[1735622869394,0.26297338,700.2,698.62,0.28627866]
[1735622869592,0.28563675,700.19,698.62,0.28627866]
[1735622877804,0.26297872,700.18,698.62,0.28627866]
[1735622878004,0.28563675,700.19,698.62,0.28627866]
[1735622907629,0.28563675,700.19,698.63,1.06582035]
[1735622907830,0.28563675,700.19,698.65,0.28626637]
[1735622911023,0.28563675,700.19,698.86,1.06582035]
[1735622911427,0.28563675,700.19,698.87,0.28617625]
[1735622912332,0.28563675,700.19,699.05,1.06582035]
[1735622912629,0.28563675,700.19,699.05,1.35192291]
[1735622913035,0.28563675,700.19,699.06,1.06582035]
[1735622914628,0.28563675,700.19,699.05,0.28610256]
[1735622927035,1.49207869,700.41,699.05,0.28610256]
[1735622944754,1.49207869,700.41,699.06,1.06582035]
[1735622944950,1.49207869,700.41,699.07,0.28609438]
[1735622945554,1.49207869,700.41,699.08,1.06582035]
[1735622945755,1.49207869,700.41,699.09,0.28608619]
[1735622946752,1.49207869,700.41,699.1,1.06582035]
[1735622946954,1.49207869,700.41,699.1,1.35190245]
[1735622948955,1.49207869,700.41,699.12,1.06582035]
[1735622949860,1.49207869,700.41,699.24,1.06582035]
[1735622950564,1.49207869,700.41,699.1,0.2860821]
[1735622952265,1.49207869,700.41,699.11,1.06582035]
[1735622952464,1.49207869,700.41,699.12,0.28607392]
[1735622958872,1.05478732,700.58,699.12,0.28607392]
[1735622959068,1.49187613,700.55,699.12,0.28607392]
[1735622960574,1.49187613,700.55,699.18,1.06582035]
[1735622960970,1.49187613,700.55,699.19,0.28604528]
[1735622970579,1.49187613,700.55,699.19,1.35186563]
[1735622971777,1.49187613,700.55,699.37,1.06582035]
[1735622972581,1.49187613,700.55,699.3,1.06582035]
[1735622973585,1.49187613,700.55,699.32,1.06582035]
[1735622974484,1.49187613,700.55,699.31,1.06582035]
[1735622975586,1.49187613,700.55,699.29,1.06582035]
[1735622976687,1.49187613,700.55,699.31,1.06582035]
[1735622977187,1.05478732,700.79,699.31,1.06582035]
[1735622977388,1.49152978,700.55,699.31,1.06582035]
[1735622977589,1.34018359,700.78,699.28,1.06582035]
[1735622977883,1.49152978,700.55,699.28,1.06582035]
[1735622978089,1.34018359,700.78,699.28,1.06582035]
[1735622978294,1.49154576,700.55,699.29,0.28600437]
[1735622978683,1.34018766,700.77,699.29,0.28600437]
[1735622978890,1.49155109,700.58,699.29,0.28600437]
[1735622979088,0.28540441,700.76,699.29,0.28600437]
[1735622979489,1.49147118,700.61,699.29,0.28600437]
[1735622979790,1.49138063,700.75,699.29,0.28600437]
[1735622983589,0.28541256,700.74,699.29,0.28600437]
[1735622986701,0.26278342,700.73,699.29,0.28600437]
[1735622987294,1.34019988,700.74,699.29,0.28600437]
[1735622988192,0.28541663,700.73,699.29,0.28600437]
[1735622988396,1.05478732,700.72,699.29,0.28600437]
[1735622988691,0.28542478,700.71,699.29,0.28600437]
[1735622990396,1.05478732,700.69,699.29,0.28600437]
[1735622990597,0.285437,700.68,699.29,0.28600437]
[1735622991299,1.49163634,700.67,699.29,0.28600437]
[1735622991496,0.28544515,700.66,699.29,0.28600437]
[1735622992599,1.05478732,700.65,699.29,0.28600437]
[1735622992897,0.28545329,700.64,699.29,0.28600437]
[1735622993798,1.05478732,700.6,699.3,1.06582035]
[1735622994899,1.05478732,700.6,699.29,0.28600437]
[1735622996794,1.05478732,700.59,699.29,0.28600437]
[1735622997903,0.28545329,700.64,699.29,1.35182472]
[1735622997904,1.05478732,700.58,699.29,1.35182472]
[1735622998299,1.34026506,700.58,699.29,1.35182472]
[1735622998900,0.28547774,700.58,699.29,0.28600437]
[1735622999503,1.34026506,700.58,699.29,1.35182472]
[1735623000499,0.28547774,700.58,699.3,1.06582035]
[1735623001504,1.49160437,700.57,699.3,1.06582035]
[1735623002310,1.49160437,700.57,699.29,0.28600437]
[1735623002311,1.05478732,700.56,699.29,0.28600437]
[1735623003409,2.54639169,700.57,699.29,0.28600437]
[1735623003904,0.28548589,700.56,699.29,0.28600437]
[1735623004406,1.05478732,700.55,699.29,0.28600437]
[1735623005511,0.28548589,700.56,699.29,0.28600437]
[1735623010413,0.28548589,700.56,699.31,1.06582035]
[1735623011312,0.28548589,700.56,699.35,1.06582035]
[1735623011713,0.28548589,700.56,699.36,0.28597574]
[1735623012510,0.28548589,700.56,699.37,1.06582035]
[1735623012713,0.28548589,700.56,699.38,0.28596757]
[1735623017715,0.26281877,700.55,699.38,0.28596757]
[1735623018618,0.28548589,700.56,699.38,0.28596757]